Workbook

Sheet паспорт
A1: ПАТ "УКРТРАНСГАЗ" | G1: ПАСПОРТ ФІЗИКО-ХІМІЧНИХ ПОКАЗНИКІВ ПРИРОДНОГО ГАЗУ № 161
A2: Філія "УМГ "КИЇВТРАНСГАЗ" | G2: переданого Чернігівським ЛВУМГ та прийнятого ПАТ "Чернігівгаз", ПАТ "Київоблгаз", РВУ "Київавтогаз", ТОВ "Фактор Нафтогаз", ТОВ "ТЕК "Ітера Україна"
A3: Чернігівське ЛВУМГ | G3: Маршрут № 161
A4: Вимірювальна хіміко-аналітична лабораторія
A5: Свідоцтво № 74/2014 чинно до 01.07.2019 р. | K5: по газопроводу "ДАШАВА-КИЇВ-БРЯНСЬК-МОСКВА" | V5: за період з | X5: 2017-05-01 | Z5: по | AA5: 2017-05-31
A7: Число місяця | B7: Компонентний склад, % мол. | N7: Фізико-хімічні показники газу обчислені на основі компонентного складу, 101,325 кПа | X7: Температура точки роси за вологою (Р = 3.92 МПа), ºС | Y7: Температура точки роси за вуглеводнями, ºС | Z7: Вміст сірководню, г/м3 | AA7: Вміст меркаптанової сірки, г/м3 | AB7: Вміст механічних домішок, г/м3
N8: Густина абсолютна, кг/м3,при 20 ºС, | O8: Температура вимірювання/згоряння при 20/25°С
B9: метан, С1 | C9: етан, С2 | D9: пропан, С3 | E9: ізо-бутан, і-С4 | F9: н-бутан, н-С4 | G9: нео-пентан, нео-С5 | H9: ізо-пентан, і-С5 | I9: н-пентан, н-С5 | J9: гексани та вищі, С6+ | K9: кисень, О2 | L9: азот, N2 | M9: діоксид вуглецю, CО2 | O9: Теплота згоряння нижча | R9: Теплота згоряння вища | U9: Число Воббе вище
O10: ккал/м3 | P10: МДж/м3 | Q10: кВт⋅год/м3 | R10: ккал/м3 | S10: МДж/м3 | T10: кВт⋅год/м3 | U10: ккал/м3 | V10: МДж/м3 | W10: кВт⋅год/м3
A11: 1 | O11: 8220 | P11: 34.42 | Q11: 9.56 | R11: 9102 | S11: 38.11 | T11: 10.59 | AC11: =SUM(B11:M11)+$K$42+$N$42 -> 0
A12: 2 | B12: 89.5471 | C12: 5.0226 | D12: 1.1736 | E12: 0.1251 | F12: 0.205 | G12: 0.0039 | H12: 0.0559 | I12: 0.0433 | J12: 0.0476 | K12: 0.006 | L12: 1.7554 | M12: 2.0144 | N12: 0.7534 | O12: 8244 | P12: 34.52 | Q12: 9.59 | R12: 9127 | S12: 38.21 | T12: 10.61 | U12: 11541 | V12: 48.32 | W12: 13.42 | X12: -10 | Y12: -9.6 | Z12: 0.0001 | AA12: 0.0004 | AB12: відс. | AC12: 99.9999
A13: 3 | O13: 8244 | P13: 34.52 | Q13: 9.59 | R13: 9127 | S13: 38.21 | T13: 10.61 | AC13: 0 | AD13: =IF(AC13=100,"ОК"," ") -> 
A14: 4 | O14: 8244 | P14: 34.52 | Q14: 9.59 | R14: 9127 | S14: 38.21 | T14: 10.61 | AC14: 0 | AD14: =IF(AC14=100,"ОК"," ") -> 
A15: 5 | O15: 8244 | P15: 34.52 | Q15: 9.59 | R15: 9127 | S15: 38.21 | T15: 10.61 | AC15: 0
A16: 6 | O16: 8244 | P16: 34.52 | Q16: 9.59 | R16: 9127 | S16: 38.21 | T16: 10.61 | AC16: 0
A17: 7 | O17: 8244 | P17: 34.52 | Q17: 9.59 | R17: 9127 | S17: 38.21 | T17: 10.61 | AC17: 0
A18: 8 | O18: 8244 | P18: 34.52 | Q18: 9.59 | R18: 9127 | S18: 38.21 | T18: 10.61 | AC18: =SUM(B18:M18)+$K$42+$N$42 -> 0
A19: 9 | B19: 89.7428 | C19: 4.9125 | D19: 1.1155 | E19: 0.1188 | F19: 0.2186 | G19: 0.0035 | H19: 0.0549 | I19: 0.042 | J19: 0.0544 | K19: 0.0059 | L19: 1.7181 | M19: 2.0131 | N19: 0.7521 | O19: 8236 | P19: 34.48 | Q19: 9.58 | R19: 9118 | S19: 38.18 | T19: 10.61 | U19: 11539 | V19: 48.31 | W19: 13.42 | X19: -9.8 | Y19: -10.2 | Z19: 0.0001 | AA19: 0.0004 | AB19: відс. | AC19: 100.0001
A20: 10 | O20: 8236 | P20: 34.48 | Q20: 9.58 | R20: 9118 | S20: 38.18 | T20: 10.61 | AC20: 0
A21: 11 | O21: 8236 | P21: 34.48 | Q21: 9.58 | R21: 9118 | S21: 38.18 | T21: 10.61 | AC21: 0
A22: 12 | O22: 8236 | P22: 34.48 | Q22: 9.58 | R22: 9118 | S22: 38.18 | T22: 10.61 | AC22: 0
A23: 13 | O23: 8236 | P23: 34.48 | Q23: 9.58 | R23: 9118 | S23: 38.18 | T23: 10.61 | AC23: 0
A24: 14 | O24: 8236 | P24: 34.48 | Q24: 9.58 | R24: 9118 | S24: 38.18 | T24: 10.61 | AC24: 0
A25: 15 | B25: 89.5018 | C25: 5.0528 | D25: 1.1579 | E25: 0.1225 | F25: 0.2188 | G25: 0.0042 | H25: 0.0573 | I25: 0.0432 | J25: 0.0543 | K25: 0.0063 | L25: 1.7612 | M25: 2.0195 | N25: 0.7539 | O25: 8248 | P25: 34.53 | Q25: 9.59 | R25: 9130 | S25: 38.23 | T25: 10.62 | U25: 11541 | V25: 48.32 | W25: 13.42 | X25: -10.2 | Y25: -10.5 | Z25: 0.0001 | AA25: 0.0004 | AB25: відс. | AC25: 99.9998
A26: 16 | O26: 8248 | P26: 34.53 | Q26: 9.59 | R26: 9130 | S26: 38.23 | T26: 10.62 | AC26: 0
A27: 17 | O27: 8248 | P27: 34.53 | Q27: 9.59 | R27: 9130 | S27: 38.23 | T27: 10.62 | AC27: 0
A28: 18 | O28: 8248 | P28: 34.53 | Q28: 9.59 | R28: 9130 | S28: 38.23 | T28: 10.62 | AC28: 0
A29: 19 | O29: 8248 | P29: 34.53 | Q29: 9.59 | R29: 9130 | S29: 38.23 | T29: 10.62 | AC29: 0
A30: 20 | O30: 8248 | P30: 34.53 | Q30: 9.59 | R30: 9130 | S30: 38.23 | T30: 10.62 | AC30: 0 | AD30: =IF(AC30=100,"ОК"," ") -> 
A31: 21 | O31: 8248 | P31: 34.53 | Q31: 9.59 | R31: 9130 | S31: 38.23 | T31: 10.62 | AC31: 0
A32: 22 | B32: 89.6964 | C32: 4.9626 | D32: 1.1476 | E32: 0.1218 | F32: 0.2207 | G32: 0.0036 | H32: 0.0577 | I32: 0.0445 | J32: 0.0551 | K32: 0.0033 | L32: 1.7103 | M32: 1.9764 | N32: 0.7525 | O32: 8249 | P32: 34.54 | Q32: 9.59 | R32: 9132 | S32: 38.24 | T32: 10.62 | U32: 11553 | V32: 48.37 | W32: 13.44 | X32: -9 | Y32: -10.2 | Z32: 0.0001 | AA32: 0.0004 | AB32: відс. | AC32: 100 | AD32: ОК
A33: 23 | O33: 8249 | P33: 34.54 | Q33: 9.59 | R33: 9132 | S33: 38.24 | T33: 10.62 | AC33: 0 | AD33: =IF(AC33=100,"ОК"," ") -> 
A34: 24 | O34: 8249 | P34: 34.54 | Q34: 9.59 | R34: 9132 | S34: 38.24 | T34: 10.62 | AC34: 0
A35: 25 | O35: 8249 | P35: 34.54 | Q35: 9.59 | R35: 9132 | S35: 38.24 | T35: 10.62 | AC35: 0
A36: 26 | O36: 8249 | P36: 34.54 | Q36: 9.59 | R36: 9132 | S36: 38.24 | T36: 10.62 | AC36: 0
A37: 27 | O37: 8249 | P37: 34.54 | Q37: 9.59 | R37: 9132 | S37: 38.24 | T37: 10.62 | AC37: 0
A38: 28 | O38: 8249 | P38: 34.54 | Q38: 9.59 | R38: 9132 | S38: 38.24 | T38: 10.62 | AC38: 0
A39: 29 | B39: 89.9177 | C39: 4.7399 | D39: 1.1935 | E39: 0.1307 | F39: 0.2381 | G39: 0.0036 | H39: 0.0598 | I39: 0.0459 | J39: 0.0429 | K39: 0.0047 | L39: 1.6904 | M39: 1.9329 | N39: 0.7514 | O39: 8248 | P39: 34.53 | Q39: 9.59 | R39: 9131 | S39: 38.23 | T39: 10.62 | U39: 11560 | V39: 48.4 | W39: 13.44 | X39: -8.8 | Y39: -9.8 | Z39: 0.0001 | AA39: 0.0004 | AB39: відс. | AC39: 100.0001
A40: 30 | O40: 8248 | P40: 34.53 | Q40: 9.59 | R40: 9131 | S40: 38.23 | T40: 10.62 | AC40: 0
A41: 31 | O41: 8248 | P41: 34.53 | Q41: 9.59 | R41: 9131 | S41: 38.23 | T41: 10.62 | AC41: 0
A42: Рівень одоризації відповідає чинним нормативним документам | O42: =SUMPRODUCT(O11:O41,' розрахунок'!AH7:AH37)/' розрахунок'!AH38 -> 8243.397564 | P42: =SUMPRODUCT(P11:P41,' розрахунок'!AH7:AH37)/' розрахунок'!AH38 -> 34.51366755 | Q42: =SUMPRODUCT(Q11:Q41,' розрахунок'!AH7:AH37)/' розрахунок'!AH38 -> 9.586533517 | R42: 9127 | S42: =SUMPRODUCT(S11:S41,' розрахунок'!AH7:AH37)/' розрахунок'!AH38 -> 38.21109331 | T42: =SUMPRODUCT(T11:T41,' розрахунок'!AH7:AH37)/' розрахунок'!AH38 -> 10.61428731
H43: Середньозважене значення теплоти згоряння:
B46: Начальник управління Чернігівського ЛВУМГ Шутішин В.О. 01.06.2017 р.
C47: Підрозділу підприємства, якому підпорядкована лабораторія | O47: прізвище | R47: підпис | V47: дата
B48: Завідувач лабораторією Лапа І.О. 01.06.2017 р.
C49: Лабораторія, де здійснювалось вимірювання газу | O49: прізвище | R49: підпис | V49: дата
B50: Начальник служби газовимірювання та метрології Макаров О.В. 01.06.2017 р.
C51: Підрозділу, відповідального за облік газу за маршрутом | O51: прізвище | R51: підпис | V51: дата

Sheet розрахунок
A2: Додаток до Паспорту фізико-хімічних показників природного газу по маршруту № 161
A4: Число місяця | B4: Теплота згоряння вища, МДж/м3 | C4: Чернігівська область | AG4: Київська область | AH4: Загальний обсяг газу, м3
C5: Обсяг газу переданого за добу, м3
C6: ГРС № 3 м. Чернігів | D6: ГРС № 2 м. Чернігів | E6: ГРС Іванівка (Чернігівського району) | F6: ГРС М. Коцюбинське | G6: ГРС Брусилів | H6: ГРС Снов'янка | I6: ГРС Гончарівське | J6: ГРС Орлівка | K6: ГРС Куликівка | L6: ГРС Ковчин | M6: ГРС Локнисте | N6: ГРС Сновськ | O6: ГРС Петрівка | P6: ГРС Городня | Q6: ГРС Хоробичі | R6: ГРС Деревини | S6: ГРС Ріпки | T6: ГРС Добрянка | U6: ГРС Любеч | V6: ГРС В. Зліїв | W6: ГРС Т. Шевченка | X6: ГРС Дніпровське | Y6: ГРС Березна | Z6: ГРС Мена | AA6: ГРС Сосниця | AB6: ГРС Покровське | AC6: ГРС Волосківці | AD6: АГНКС № 1 м. Чернігів | AE6: АГНКС м. Чернігів | AF6: АГНКС м. Мена | AG6: ГРС Славутич
A7: 1 | B7: 38.11 | D7: 251003.7 | E7: 3587 | F7: 5355 | G7: 5513 | H7: 589 | I7: 1857 | J7: 1003 | K7: 8433 | L7: 1770 | M7: 1184 | N7: 3795 | O7: 1170 | P7: 8807 | Q7: 303 | R7: 273 | S7: 5966 | T7: 765 | U7: 1048 | V7: 1520 | W7: 216 | X7: 489 | Y7: 2319 | Z7: 11096 | AA7: 1819 | AB7: 821 | AC7: 442 | AD7: 0 | AE7: 2426 | AF7: 527 | AG7: 1846 | AH7: =SUM(C7:AG7) -> 325942.7
A8: 2 | B8: 38.21 | D8: 281828.9 | E8: 4022 | F8: 6334 | G8: 6084 | H8: 673 | I8: 2011 | J8: 1100 | K8: 8598 | L8: 1857 | M8: 1216 | N8: 5238 | O8: 1524 | P8: 11116 | Q8: 353 | R8: 307 | S8: 7416 | T8: 2422 | U8: 1177 | V8: 1692 | W8: 239 | X8: 559 | Y8: 2890 | Z8: 17312 | AA8: 2627 | AB8: 882 | AC8: 538 | AD8: 583 | AE8: 3122 | AF8: 568 | AG8: 1997 | AH8: 376285.9
A9: 3 | B9: 38.21 | D9: 273967.7 | E9: 3329 | F9: 4797 | G9: 4629 | H9: 518 | I9: 1706 | J9: 949 | K9: 8360 | L9: 1603 | M9: 1125 | N9: 4601 | O9: 1485 | P9: 8527 | Q9: 279 | R9: 286 | S9: 5303 | T9: 720 | U9: 812 | V9: 1386 | W9: 149 | X9: 399 | Y9: 2588 | Z9: 13788 | AA9: 2532 | AB9: 861 | AC9: 469 | AD9: 0 | AE9: 3689 | AF9: 1096 | AG9: 1530 | AH9: 351483.7
A10: 4 | B10: 38.21 | D10: 242865.5 | E10: 3191 | F10: 4184 | G10: 4538 | H10: 521 | I10: 1580 | J10: 898 | K10: 8481 | L10: 1573 | M10: 1037 | N10: 4201 | O10: 1244 | P10: 7637 | Q10: 263 | R10: 269 | S10: 4906 | T10: 4172 | U10: 740 | V10: 1208 | W10: 138 | X10: 355 | Y10: 2267 | Z10: 16305 | AA10: 2479 | AB10: 786 | AC10: 414 | AD10: 487 | AE10: 3539 | AF10: 1178 | AG10: 1449 | AH10: 322905.5
A11: 5 | B11: 38.21 | C11: 205680 | D11: 45931.71 | E11: 3380 | F11: 4342 | G11: 4604 | H11: 484 | I11: 1469 | J11: 964 | K11: 8500 | L11: 1702 | M11: 1084 | N11: 4084 | O11: 1203 | P11: 7860 | Q11: 269 | R11: 250 | S11: 4720 | T11: 1124 | U11: 785 | V11: 1137 | W11: 165 | X11: 373 | Y11: 2281 | Z11: 13833 | AA11: 2198 | AB11: 880 | AC11: 434 | AD11: 463 | AE11: 3452 | AF11: 1179 | AG11: 1395 | AH11: 326225.71
A12: 6 | B12: 38.21 | C12: 213407 | E12: 2806 | F12: 3982 | G12: 4526 | H12: 503 | I12: 1644 | J12: 931 | K12: 7940 | L12: 1640 | M12: 1030 | N12: 3767 | O12: 1216 | P12: 7288 | Q12: 230 | R12: 259 | S12: 4369 | T12: 3828 | U12: 669 | V12: 1106 | W12: 169 | X12: 371 | Y12: 2158 | Z12: 17097 | AA12: 2173 | AB12: 791 | AC12: 424 | AD12: 0 | AE12: 1756 | AF12: 977 | AG12: 1346 | AH12: =SUM(C12:AG12) -> 288403
A13: 7 | B13: 38.21 | C13: 201455 | E13: 2710 | F13: 3625 | G13: 3940 | H13: 454 | I13: 1423 | J13: 837 | K13: 9101 | L13: 1421 | M13: 903 | N13: 3342 | O13: 1221 | P13: 6769 | Q13: 224 | R13: 224 | S13: 3926 | T13: 583 | U13: 589 | V13: 925 | W13: 137 | X13: 335 | Y13: 1766 | Z13: 16534 | AA13: 2116 | AB13: 633 | AC13: 358 | AD13: 73 | AE13: 2225 | AF13: 524 | AG13: 1235 | AH13: 269608
A14: 8 | B14: 38.21 | C14: 218353 | E14: 2929 | F14: 4491 | G14: 4353 | H14: 466 | I14: 1553 | J14: 945 | K14: 8720 | L14: 1487 | M14: 971 | N14: 3771 | O14: 1208 | P14: 8114 | Q14: 335 | R14: 301 | S14: 5182 | T14: 4075 | U14: 779 | V14: 1238 | W14: 183 | X14: 386 | Y14: 2130 | Z14: 16459 | AA14: 2801 | AB14: 828 | AC14: 392 | AD14: 0 | AE14: 2386 | AF14: 814 | AG14: 1384 | AH14: 297034
A15: 9 | B15: 38.18 | C15: 249826 | E15: 4495 | F15: 6544 | G15: 7151 | H15: 678 | I15: 1971 | J15: 1373 | K15: 11083 | L15: 2044 | M15: 1310 | N15: 5782 | O15: 1789 | P15: 11249 | Q15: 442 | R15: 336 | S15: 7793 | T15: 4272 | U15: 1077 | V15: 1613 | W15: 251 | X15: 548 | Y15: 3293 | Z15: 21621 | AA15: 3797 | AB15: 1213 | AC15: 612 | AD15: 364 | AE15: 2682 | AF15: 630 | AG15: 2063 | AH15: =SUM(C15:AG15) -> 357902
A16: 10 | B16: 38.18 | C16: 304183 | E16: 7586 | F16: 9567 | G16: 10286 | H16: 1066 | I16: 2557 | J16: 1858 | K16: 14671 | L16: 3211 | M16: 1959 | N16: 8642 | O16: 2290 | P16: 15953 | Q16: 581 | R16: 501 | S16: 11812 | T16: 1158 | U16: 1506 | V16: 2322 | W16: 280 | X16: 661 | Y16: 5175 | Z16: 21690 | AA16: 5512 | AB16: 1612 | AC16: 1013 | AD16: 569 | AE16: 3887 | AF16: 1251 | AG16: 2695 | AH16: =SUM(C16:AG16) -> 446054
A17: 11 | B17: 38.18 | C17: 314454 | E17: 7581 | F17: 9541 | G17: 10132 | H17: 1104 | I17: 2696 | J17: 1908 | K17: 14132 | L17: 3638 | M17: 2111 | N17: 9716 | O17: 2682 | P17: 16974 | Q17: 661 | R17: 569 | S17: 12013 | T17: 4172 | U17: 1572 | V17: 2363 | W17: 240 | X17: 613 | Y17: 5642 | Z17: 30411 | AA17: 5925 | AB17: 1711 | AC17: 1120 | AD17: 467 | AE17: 3218 | AF17: 1132 | AG17: 2867 | AH17: 471365
A18: 12 | B18: 38.18 | C18: 278639 | E18: 5339 | F18: 6993 | G18: 7017 | H18: 827 | I18: 2218 | J18: 1610 | K18: 11128 | L18: 2349 | M18: 1515 | N18: 6684 | O18: 1913 | P18: 11876 | Q18: 468 | R18: 420 | S18: 8199 | T18: 3236 | U18: 1230 | V18: 1657 | W18: 190 | X18: 523 | Y18: 3673 | Z18: 25688 | AA18: 4317 | AB18: 1346 | AC18: 773 | AD18: 353 | AE18: 3537 | AF18: 996 | AG18: 2112 | AH18: 396826
A19: 13 | B19: 38.18 | C19: 296756 | E19: 7946 | F19: 9684 | G19: 10631 | H19: 1247 | I19: 2877 | J19: 2326 | K19: 15815 | L19: 3940 | M19: 2452 | N19: 9247 | O19: 2599 | P19: 15439 | Q19: 543 | R19: 521 | S19: 11242 | T19: 1418 | U19: 1645 | V19: 2348 | W19: 248 | X19: 632 | Y19: 5910 | Z19: 31059 | AA19: 6592 | AB19: 1860 | AC19: 1188 | AD19: 0 | AE19: 2448 | AF19: 758 | AG19: 2932 | AH19: 452303
A20: 14 | B20: 38.18 | C20: 240873 | E20: 4716 | F20: 7520 | G20: 5933 | H20: 707 | I20: 2150 | J20: 1389 | K20: 11284 | L20: 2180 | M20: 1355 | N20: 5586 | O20: 1600 | P20: 9958 | Q20: 326 | R20: 353 | S20: 6955 | T20: 3317 | U20: 1031 | V20: 1387 | W20: 201 | X20: 474 | Y20: 3231 | Z20: 19002 | AA20: 4053 | AB20: 1226 | AC20: 591 | AD20: 0 | AE20: 2304 | AF20: 627 | AG20: 1859 | AH20: 342188
A21: 15 | B21: 38.23 | C21: 224368 | E21: 4316 | F21: 7520 | G21: 4635 | H21: 500 | I21: 1585 | J21: 950 | K21: 9002 | L21: 1655 | M21: 994 | N21: 4032 | O21: 1128 | P21: 7824 | Q21: 235 | R21: 277 | S21: 4732 | T21: 4167 | U21: 720 | V21: 1092 | W21: 142 | X21: 339 | Y21: 2281 | Z21: 17566 | AA21: 3012 | AB21: 879 | AC21: 456 | AD21: 486 | AE21: 3232 | AF21: 846 | AG21: 1438 | AH21: =SUM(C21:AG21) -> 310409
A22: 16 | B22: 38.23 | C22: 236732 | E22: 2099 | F22: 4836 | G22: 5106 | H22: 598 | I22: 1533 | J22: 992 | K22: 6251 | L22: 1639 | M22: 1106 | N22: 4539 | O22: 1328 | P22: 8725 | Q22: 284 | R22: 313 | S22: 5655 | T22: 3232 | U22: 768 | V22: 1324 | W22: 149 | X22: 367 | Y22: 2482 | Z22: 18175 | AA22: 3141 | AB22: 904 | AC22: 481 | AD22: 463 | AE22: 3679 | AF22: 1127 | AG22: 1517 | AH22: 319545
A23: 17 | B23: 38.23 | C23: 249191 | E23: 3619 | F23: 5100 | G23: 5539 | H23: 627 | I23: 1757 | J23: 1205 | K23: 10855 | L23: 1791 | M23: 1192 | N23: 4995 | O23: 1545 | P23: 9762 | Q23: 316 | R23: 329 | S23: 5933 | T23: 766 | U23: 774 | V23: 1239 | W23: 148 | X23: 371 | Y23: 2918 | Z23: 19758 | AA23: 3535 | AB23: 972 | AC23: 577 | AD23: 437 | AE23: 4249 | AF23: 1303 | AG23: 1642 | AH23: 342445
A24: 18 | B24: 38.23 | C24: 242926 | E24: 3342 | F24: 4489 | G24: 4969 | H24: 577 | I24: 1620 | J24: 1068 | K24: 9196 | L24: 1807 | M24: 1152 | N24: 4781 | O24: 1304 | P24: 8485 | Q24: 265 | R24: 270 | S24: 5250 | T24: 2200 | U24: 742 | V24: 1234 | W24: 284 | X24: 341 | Y24: 2918 | Z24: 17395 | AA24: 3760 | AB24: 1106 | AC24: 528 | AD24: 318 | AE24: 3896 | AF24: 1033 | AG24: 1575 | AH24: =SUM(C24:AG24) -> 328831
A25: 19 | B25: 38.23 | C25: 223748 | E25: 2963 | F25: 3992 | G25: 3862 | H25: 470 | I25: 1549 | J25: 977 | K25: 7774 | L25: 1549 | M25: 1068 | N25: 3890 | O25: 1276 | P25: 7134 | Q25: 206 | R25: 233 | S25: 4389 | T25: 2038 | U25: 674 | V25: 1096 | W25: 279 | X25: 357 | Y25: 2181 | Z25: 20677 | AA25: 2533 | AB25: 814 | AC25: 447 | AD25: 0 | AE25: 3352 | AF25: 1201 | AG25: 1422 | AH25: 302151
A26: 20 | B26: 38.23 | C26: 200948 | E26: 2972 | F26: 3907 | G26: 4082 | H26: 479 | I26: 1545 | J26: 1069 | K26: 9384 | L26: 1650 | M26: 1036 | N26: 3778 | O26: 1288 | P26: 7051 | Q26: 215 | R26: 236 | S26: 4486 | T26: 3974 | U26: 598 | V26: 1162 | W26: 355 | X26: 350 | Y26: 2266 | Z26: 17404 | AA26: 2417 | AB26: 849 | AC26: 407 | AD26: 0 | AE26: 3288 | AF26: 556 | AG26: 1369 | AH26: =SUM(C26:AG26) -> 279121
A27: 21 | B27: 38.23 | C27: 223703 | E27: 2969 | F27: 4213 | G27: 4015 | H27: 464 | I27: 1582 | J27: 1000 | K27: 9470 | L27: 1527 | M27: 1098 | N27: 3883 | O27: 1275 | P27: 7428 | Q27: 225 | R27: 212 | S27: 7633 | T27: 2444 | U27: 708 | V27: 1043 | W27: 198 | X27: 320 | Y27: 2218 | Z27: 16299 | AA27: 2505 | AB27: 820 | AC27: 423 | AD27: 0 | AE27: 2710 | AF27: 656 | AG27: 1330 | AH27: 302371
A28: 22 | B28: 38.24 | C28: 208469 | E28: 2543 | F28: 3462 | G28: 3395 | H28: 384 | I28: 1364 | J28: 818 | K28: 8441 | L28: 1261 | M28: 865 | N28: 3362 | O28: 1158 | P28: 6453 | Q28: 166 | R28: 192 | S28: 2203 | T28: 2608 | U28: 540 | V28: 944 | W28: 116 | X28: 270 | Y28: 1705 | Z28: 17029 | AA28: 2298 | AB28: 706 | AC28: 356 | AD28: 578 | AE28: 3249 | AF28: 1119 | AG28: 1159 | AH28: =SUM(C28:AG28) -> 277213
A29: 23 | B29: 38.24 | C29: 209612 | E29: 2359 | F29: 3155 | G29: 3343 | H29: 380 | I29: 1235 | J29: 708 | K29: 9139 | L29: 1227 | M29: 754 | N29: 3329 | O29: 774 | P29: 6012 | Q29: 146 | R29: 170 | S29: 3350 | T29: 1192 | U29: 454 | V29: 932 | W29: 104 | X29: 226 | Y29: 1911 | Z29: 18675 | AA29: 2164 | AB29: 604 | AC29: 338 | AD29: 434 | AE29: 3465 | AF29: 1211 | AG29: 1055 | AH29: 278458
A30: 24 | B30: 38.24 | C30: 206335 | E30: 2461 | F30: 3174 | G30: 3095 | H30: 407 | I30: 1226 | J30: 816 | K30: 9289 | L30: 1227 | M30: 814 | N30: 3283 | O30: 1070 | P30: 6047 | Q30: 172 | R30: 160 | S30: 3310 | T30: 1547 | U30: 492 | V30: 813 | W30: 102 | X30: 223 | Y30: 1842 | Z30: 18194 | AA30: 2278 | AB30: 582 | AC30: 317 | AD30: 0 | AE30: 3979 | AF30: 1073 | AG30: 1085 | AH30: 275413
A31: 25 | B31: 38.24 | C31: 208643 | E31: 2336 | F31: 3322 | G31: 3154 | H31: 365 | I31: 1286 | J31: 697 | K31: 8879 | L31: 1257 | M31: 805 | N31: 3251 | O31: 1082 | P31: 6322 | Q31: 158 | R31: 206 | S31: 3758 | T31: 4653 | U31: 557 | V31: 1013 | W31: 93 | X31: 230 | Y31: 1770 | Z31: 16235 | AA31: 2038 | AB31: 659 | AC31: 324 | AD31: 0 | AE31: 3356 | AF31: 924 | AG31: 945 | AH31: =SUM(C31:AG31) -> 278318
A32: 26 | B32: 38.24 | C32: 213705 | E32: 2628 | F32: 3600 | G32: 3548 | H32: 437 | I32: 1366 | J32: 909 | K32: 9355 | L32: 1512 | M32: 1071 | N32: 3763 | O32: 1137 | P32: 7655 | Q32: 205 | R32: 202 | S32: 3896 | T32: 577 | U32: 556 | V32: 1082 | W32: 109 | X32: 247 | Y32: 2141 | Z32: 16317 | AA32: 2229 | AB32: 684 | AC32: 369 | AD32: 357 | AE32: 3473 | AF32: 1039 | AG32: 1149 | AH32: =SUM(C32:AG32) -> 285318
A33: 27 | B33: 38.24 | C33: 195516 | E33: 2650 | F33: 3641 | G33: 3534 | H33: 430 | I33: 1412 | J33: 882 | K33: 9472 | L33: 1527 | M33: 965 | N33: 3470 | O33: 1291 | P33: 7196 | Q33: 185 | R33: 214 | S33: 3900 | T33: 548 | U33: 540 | V33: 1042 | W33: 110 | X33: 298 | Y33: 2152 | Z33: 17161 | AA33: 1928 | AB33: 718 | AC33: 362 | AD33: 0 | AE33: 2884 | AF33: 755 | AG33: 1221 | AH33: 266004
A34: 28 | B34: 38.24 | C34: 195309 | E34: 2546 | F34: 3620 | G34: 3414 | H34: 415 | I34: 1316 | J34: 805 | K34: 9139 | L34: 1409 | M34: 949 | N34: 3324 | O34: 1130 | P34: 7070 | Q34: 183 | R34: 194 | S34: 3981 | T34: 3630 | U34: 542 | V34: 933 | W34: 99 | X34: 274 | Y34: 1899 | Z34: 11368 | AA34: 2027 | AB34: 639 | AC34: 337 | AD34: 0 | AE34: 2833 | AF34: 501 | AG34: 1174 | AH34: 261060
A35: 29 | B35: 38.23 | C35: 200137 | E35: 2185 | F35: 2931 | G35: 3016 | H35: 343 | I35: 1138 | J35: 698 | K35: 8855 | L35: 1237 | M35: 849 | N35: 3101 | O35: 876 | P35: 5848 | Q35: 150 | R35: 139 | S35: 3300 | T35: 2337 | U35: 432 | V35: 822 | W35: 86 | X35: 217 | Y35: 1695 | Z35: 13612 | AA35: 1945 | AB35: 494 | AC35: 287 | AD35: 0 | AE35: 3631 | AF35: 774 | AG35: 989 | AH35: 262124
A36: 30 | B36: 38.23 | C36: 205162 | E36: 1869 | F36: 3149 | G36: 2816 | H36: 477 | I36: 1109 | J36: 650 | K36: 7183 | L36: 1189 | M36: 766 | N36: 2698 | O36: 903 | P36: 5582 | Q36: 100 | R36: 128 | S36: 3138 | T36: 350 | U36: 413 | V36: 741 | W36: 75 | X36: 11 | Y36: 1604 | Z36: 17645 | AA36: 2028 | AB36: 525 | AC36: 154 | AD36: 8 | AE36: 3796 | AF36: 934 | AG36: 1076 | AH36: 266279
A37: 31 | B37: 38.23 | C37: 218815 | E37: 2057 | F37: 2856 | G37: 2646 | H37: 413 | I37: 1057 | J37: 651 | K37: 6615 | L37: 1214 | M37: 789 | N37: 2582 | O37: 975 | P37: 5483 | Q37: 115 | R37: 119 | S37: 3037 | T37: 1185 | U37: 417 | V37: 780 | W37: 77 | X37: 123 | Y37: 1570 | Z37: 14639 | AA37: 1996 | AB37: 476 | AC37: 270 | AD37: 655 | AE37: 3307 | AF37: 981 | AG37: 1001 | AH37: 276901
A38: Загальний обсяг газу, м3 | C38: =SUM(C7:C37) -> 6186945 | D38: 1095597.51 | E38: 109531 | F38: 153926 | G38: 153506 | H38: =SUM(H7:H37) -> 17603 | I38: 51392 | J38: 32986 | K38: 294545 | L38: 55093 | M38: 35525 | N38: 140517 | O38: 42684 | P38: 267644 | Q38: 8603 | R38: 8463 | S38: 171753 | T38: 72710 | U38: 24587 | V38: 39194 | W38: 5332 | X38: 11282 | Y38: 80876 | Z38: 560044 | AA38: 90775 | AB38: 27881 | AC38: 15201 | AD38: 7095 | AE38: 99050 | AF38: 28290 | AG38: 47857 | AH38: =SUM(AH7:AH37) -> 9936487.51
A39: Енергія, МДж | C39: =SUMPRODUCT(B7:B37,C7:C37) -> 236440268.8 | D39: =SUMPRODUCT(B7:B37,D7:D37) -> 41837680.49 | E39: =SUMPRODUCT(B7:B37,E7:E37) -> 4184784.43 | F39: =SUMPRODUCT(B7:B37,F7:F37) -> 5881060.57 | G39: =SUMPRODUCT(B7:B37,G7:G37) -> 5864896.67 | H39: =SUMPRODUCT(B7:B37,H7:H37) -> 672566.36 | I39: =SUMPRODUCT(B7:B37,I7:I37) -> 1963634.2 | J39: =SUMPRODUCT(B7:B37,J7:J37) -> 1260335.09 | K39: =SUMPRODUCT(B7:B37,K7:K37) -> 11254980.88 | L39: =SUMPRODUCT(B7:B37,L7:L37) -> 2104993.43 | M39: =SUMPRODUCT(B7:B37,M7:M37) -> 1357358.48 | N39: =SUMPRODUCT(B7:B37,N7:N37) -> 5368884.4 | O39: =SUMPRODUCT(B7:B37,O7:O37) -> 1630919.67 | P39: =SUMPRODUCT(B7:B37,P7:P37) -> 10226222.16 | Q39: =SUMPRODUCT(B7:B37,Q7:Q37) -> 328678.37 | R39: =SUMPRODUCT(B7:B37,R7:R37) -> 323348.19 | S39: =SUMPRODUCT(B7:B37,S7:S37) -> 6562028.11 | T39: =SUMPRODUCT(B7:B37,T7:T37) -> 2778541.92 | U39: =SUMPRODUCT(B7:B37,U7:U37) -> 939357.99 | V39: =SUMPRODUCT(B7:B37,V7:V37) -> 1497513.47 | W39: =SUMPRODUCT(B7:B37,W7:W37) -> 203729.67 | X39: =SUMPRODUCT(B7:B37,X7:X37) -> 431041.75 | Y39: =SUMPRODUCT(B7:B37,Y7:Y37) -> 3090077.6 | Z39: =SUMPRODUCT(B7:B37,Z7:Z37) -> 21400600.28 | AA39: =SUMPRODUCT(B7:B37,AA7:AA37) -> 3468411.27 | AB39: =SUMPRODUCT(B7:B37,AB7:AB37) -> 1065276.41 | AC39: =SUMPRODUCT(B7:B37,AC7:AC37) -> 580779.79 | AD39: =SUMPRODUCT(B7:B37,AD7:AD37) -> 271135.77 | AE39: =SUMPRODUCT(B7:B37,AE7:AE37) -> 3785315.59 | AF39: =SUMPRODUCT(B7:B37,AF7:AF37) -> 1081133.26 | AG39: =SUMPRODUCT(B7:B37,AG7:AG37) -> 1828496.35 | AH39: =SUMPRODUCT(B7:B37,AH7:AH37) -> 379684051.4
A40: Теплота згоряння (середньозважене значення за місяць), МДж/м³ | C40: =C39/C38 -> 38.21599655 | D40: 38.18708979 | E40: 38.20639298 | F40: 38.20706424 | G40: 38.20630249 | H40: 38.20748509 | I40: 38.20894692 | J40: 38.20818196 | K40: 38.21141381 | L40: 38.20800156 | M40: 38.20854272 | N40: 38.20807731 | O40: 38.2091573 | P40: 38.20829968 | Q40: 38.20508776 | R40: 38.20727756 | S40: 38.20619209 | T40: 38.21402723 | U40: 38.20547403 | V40: 38.20772236 | W40: 38.20886534 | X40: 38.20614696 | Y40: 38.20759681 | Z40: 38.21235524 | AA40: 38.20888207 | AB40: 38.20796994 | AC40: 38.20668311 | AD40: 38.21504863 | AE40: 38.21620989 | AF40: 38.21609261 | AG40: 38.20750047 | AH40: =AH39/AH38 -> 38.21109331
A41: Теплота згоряння (середньозважене значення за місяць), ккал/м³ | C41: =C40*238.8459 -> 9127.734091 | D41: 9120.829829 | E41: 9125.440318 | F41: 9125.600644 | G41: 9125.418704 | H41: 9125.701163 | I41: 9126.050315 | J41: 9125.867607 | K41: 9126.639521 | L41: 9125.82452 | M41: 9125.953773 | N41: 9125.842613 | O41: 9126.100562 | P41: 9125.895725 | Q41: 9125.128571 | R41: 9125.651596 | S41: 9125.392335 | T41: 9127.263727 | U41: 9125.22083 | V41: 9125.757833 | W41: 9126.03083 | X41: 9125.381556 | Y41: 9125.727848 | Z41: 9126.864379 | AA41: 9126.034826 | AB41: 9125.816968 | AC41: 9125.509614 | AD41: 9127.507683 | AE41: 9127.785047 | AF41: 9127.757034 | AG41: 9125.704837 | AH41: =AH40*238.8459 -> 9126.562971
A42: Теплота згоряння (середньозважене значення за місяць), кВт*год./м³ | C42: =C40/3.6 -> 10.6155546 | D42: 10.60752494 | E42: 10.61288694 | F42: 10.6130734 | G42: 10.6128618 | H42: 10.6131903 | I42: 10.61359637 | J42: 10.61338388 | K42: 10.61428161 | L42: 10.61333377 | M42: 10.61348409 | N42: 10.61335481 | O42: 10.6136548 | P42: 10.61341658 | Q42: 10.61252438 | R42: 10.61313266 | S42: 10.61283114 | T42: 10.61500756 | U42: 10.61263168 | V42: 10.61325621 | W42: 10.61357371 | X42: 10.6128186 | Y42: 10.61322134 | Z42: 10.61454312 | AA42: 10.61357835 | AB42: 10.61332498 | AC42: 10.61296753 | AD42: 10.61529128 | AE42: 10.61561386 | AF42: 10.61558128 | AG42: 10.61319458 | AH42: =AH40/3.6 -> 10.61419259

Sheet додаток
A2: Додаток до Паспорту фізико-хімічних показників природного газу № 161
A4: Область | B4: ГРС, прямий споживач | C4: Cередньозважене значення вищої теплоти згоряння
C5: МДж/м³ | D5: ккал/м³ | E5: кВт*год./м³
A6: Чернігівська область | B6: ГРС Чернігів-3 | C6: 38.22 | D6: 9128 | E6: 10.62
B7: ГРС Чернігів-2 | C7: 38.19 | D7: 9121 | E7: 10.61
B8: ГРС Іванівка (Чернігівського району) | C8: 38.21 | D8: 9125 | E8: 10.61
B9: ГРС М. Коцюбинське | C9: 38.21 | D9: 9126 | E9: 10.61
B10: ГРС Брусилів | C10: 38.21 | D10: 9125 | E10: 10.61
B11: ГРС Снов'янка | C11: 38.21 | D11: 9126 | E11: 10.61
B12: ГРС Гончарівське | C12: 38.21 | D12: 9126 | E12: 10.61
B13: ГРС Орлівка | C13: 38.21 | D13: 9126 | E13: 10.61
B14: ГРС Куликівка | C14: 38.21 | D14: 9127 | E14: 10.61
B15: ГРС Ковчин | C15: 38.21 | D15: 9126 | E15: 10.61
B16: ГРС Локнисте | C16: 38.21 | D16: 9126 | E16: 10.61
B17: ГРС Сновськ | C17: 38.21 | D17: 9126 | E17: 10.61
B18: ГРС Петрівка | C18: 38.21 | D18: 9126 | E18: 10.61
B19: ГРС Городня | C19: 38.21 | D19: 9126 | E19: 10.61
B20: ГРС Хоробичі | C20: 38.21 | D20: 9125 | E20: 10.61
B21: ГРС Деревини | C21: 38.21 | D21: 9126 | E21: 10.61
B22: ГРС Ріпки | C22: 38.21 | D22: 9125 | E22: 10.61
B23: ГРС Добрянка | C23: 38.21 | D23: 9127 | E23: 10.62
B24: ГРС Любеч | C24: 38.21 | D24: 9125 | E24: 10.61
B25: ГРС В. Зліїв | C25: 38.21 | D25: 9126 | E25: 10.61
B26: ГРС Т. Шевченка | C26: 38.21 | D26: 9126 | E26: 10.61
B27: ГРС Дніпровське | C27: 38.21 | D27: 9125 | E27: 10.61
B28: ГРС Березна | C28: 38.21 | D28: 9126 | E28: 10.61
B29: ГРС Мена | C29: 38.21 | D29: 9127 | E29: 10.61
B30: ГРС Сосниця | C30: 38.21 | D30: 9126 | E30: 10.61
B31: ГРС Покровське | C31: 38.21 | D31: 9126 | E31: 10.61
B32: ГРС Волосківці | C32: 38.21 | D32: 9126 | E32: 10.61
B33: РВУ "Київавтогаз" | C33: 38.22 | D33: 9128 | E33: 10.62
B34: ТОВ "Фактор Нафтогаз" | C34: 38.22 | D34: 9128 | E34: 10.62
B35: ТОВ "ТЕК "Ітера Україна" | C35: 38.22 | D35: 9128 | E35: 10.62
A36: Київська область | B36: ГРС Славутич | C36: 38.21 | D36: 9126 | E36: 10.61
A37: Середньозважене значення вищої теплоти згоряння по маршруту № 161 | C37: 38.21 | D37: 9127 | E37: 10.61
A41: Начальник управління Чернігівського ЛВУМГ | D41: Шутішин В.О. | F41: 01.06.2017 р.
A42: Підрозділу підприємства, якому підпорядкована лабораторія | D42: прізвище | E42: підпис | F42: дата
A43: Завідувач лабораторією | D43: Лапа І.О. | F43: 01.06.2017 р.
A44: Лабораторія, де здійснювалось вимірювання газу | D44: прізвище | E44: підпис | F44: дата
A45: Начальник служби газовимірювання та метрології | D45: Макаров О.В. | F45: 01.06.2017 р.
A46: Підрозділу, відповідального за облік газу за маршрутом | D46: прізвище | E46: підпис | F46: дата

Sheet variablesList (hidden)
A1: 3 | B1: x:\gaysin | C1: 10, 11, 24, 25, 127, 128, 132, 180, 207, 215 | D1: x:\
B2: x:\Illinci
B3: x:\Talne
